lending/lending_fUSD_20250317
["ID","MTS","AMOUNT","RATE_DAILY","PERIOD"]
[356288336,1742190631747,-250.0,9.99e-05,2]
[356288337,1742190631757,-150.0,9.996e-05,2]
[356288338,1742190631767,-2675.4560073,9.997e-05,2]
[356288339,1742190631777,-1186.8684072,9.997e-05,2]
[356288340,1742190631787,-3697.07966608,9.997e-05,2]
[356288341,1742190631800,-1496.46433722,9.997e-05,2]
[356288342,1742190631810,-473.72190156,9.999e-05,2]
[356288343,1742190631822,-26.27809844,9.999e-05,2]
[356288344,1742190631831,-3123.72187656,9.999e-05,2]
[356288345,1742190631843,-729.40537279,9.999e-05,2]
[356288346,1742190631852,-244.31962721,0.0001,2]
[356288347,1742190631863,-364.68037279,0.0001,2]
[356288348,1742190631871,-9740.10219505,0.0001,2]
[356288349,1742190631883,-542.92,0.0001,2]
[356288350,1742190631894,-479.93,0.0001,2]
[356288351,1742190631908,-3909.71870609,0.0001,2]
[356288352,1742190631962,-288.0,0.0001,2]
[356288353,1742190631973,-1075.43,0.0001,2]
[356288354,1742190631985,-7597.58456803,0.0001,2]
[356288355,1742190631997,-1129.79283877,0.0001,2]
[356288356,1742190632008,-1601.46032278,0.0001,2]
[356288357,1742190632020,-6891.26719767,0.0001,2]
[356288358,1742190632031,-423.51186156,0.0001,2]
[356288359,1742190632043,-316.52362598,0.0001,2]
[356288360,1742190632054,-330.55581015,0.0001,2]
[356288363,1742190637547,-2763.63032364,0.0001,2]
[356288364,1742190637559,-758791.78735434,0.0001,2]
[356288365,1742190637570,-168609.58732189,0.0001,2]
[356288366,1742190637609,-6435.12836608,0.0001,2]
[356288367,1742190637839,-355.84762134,0.0001,2]
[356288372,1742190639800,-4172.25,0.0001,2]
[356288373,1742190639813,-357.38789991,0.0001,2]
[356288374,1742190639826,-9526.47575124,0.0001,2]
[356288375,1742190639980,-1273.216,0.0001,2]
[356288376,1742190639992,-2286.71976977,0.0001,2]
[356288377,1742190640003,-1032.75,0.0001,2]
[356288378,1742190640089,-1260.3,0.0001,2]
[356288387,1742190642740,-37442.30556469,0.0001,2]
[356288388,1742190644519,-619.70755525,0.0001,2]
[356288389,1742190644551,-2794.10004,0.0001,2]
[356288390,1742190644796,150.0,0.00010043,7]
[356288395,1742190645873,-20360.39586186,0.0001,2]
[356288396,1742190904040,173.0,0.00010043,3]
[356288397,1742190958285,820.69,8.219e-05,2]
[356288398,1742191129013,250.0,9.129e-05,2]
[356288399,1742191251972,744.51,9.103e-05,2]
[356288400,1742191299052,296.19,9.171e-05,2]
[356288401,1742191299251,296.19,9.195e-05,2]
[356288402,1742191299447,296.19,9.219e-05,2]
[356288403,1742191299866,296.19,9.243e-05,2]
[356288404,1742191300103,296.19,9.267e-05,2]
[356288405,1742191300287,296.19,9.291e-05,2]
[356288406,1742191300498,296.19,9.315e-05,2]
[356288407,1742191300703,296.19,9.34e-05,2]
[356288408,1742191300933,296.19,9.364e-05,2]
[356288409,1742191301138,296.19,9.388e-05,2]
[356288410,1742191301350,296.19,9.412e-05,2]
[356288411,1742191301703,296.19,9.436e-05,2]
[356288412,1742191301893,296.19,9.46e-05,2]
[356288413,1742191302171,296.19,9.484e-05,2]
[356288414,1742191302523,296.19,9.508e-05,2]
[356288415,1742191302719,296.19,9.533e-05,2]
[356288416,1742191302930,296.19,9.557e-05,2]
[356288417,1742191320940,748.94,9.126e-05,2]
[356288419,1742191359328,1000.0,9.142e-05,2]
[356288420,1742191389416,1706.58,9.174e-05,2]
[356288421,1742191425606,250.0,9.481e-05,2]
[356288422,1742191713951,1026.77,9.151e-05,2]
[356288423,1742191767965,-296.19,9.581e-05,2]
[356288424,1742191768010,-296.19,9.605e-05,2]
[356288425,1742191768054,-123.68285324,9.629e-05,2]
[356288426,1742191770654,673.75,9.176e-05,2]
[356288427,1742191791182,176.63,9.498e-05,2]
[356288428,1742191831890,-172.50714676,9.629e-05,2]
[356288429,1742191831903,-647.2989659,9.846e-05,2]
[356288430,1742191831914,-510.11803582,9.846e-05,2]
[356288431,1742191832014,-842.58299828,9.846e-05,2]
[356288432,1742191832024,-160.82,9.858e-05,2]
[356288433,1742191832035,-300.0,9.899e-05,2]
[356288434,1742191832044,-1000.0,9.9e-05,2]
[356288435,1742191832053,-1241.6571,9.9e-05,2]
[356288436,1742191832063,-203.0443,9.9e-05,2]
[356288437,1742191832073,-3192.54678739,9.9e-05,2]
[356288438,1742191832192,-1077.94,9.9e-05,2]
[356288439,1742191832206,-729.51321261,9.9e-05,2]
[356288440,1742191832219,-135.48678739,9.901e-05,2]
[356288450,1742191837922,-14.51321261,9.901e-05,2]
[356288451,1742191837932,-1935.921,9.902e-05,2]
[356288452,1742191837942,-170.294,9.902e-05,2]
[356288453,1742191837951,-2474.61645319,9.903e-05,2]
[356288454,1742191837962,-21425.38354681,9.903e-05,2]
[356288455,1742191837971,-200.0,9.968e-05,2]
[356288456,1742191837981,-1701.89515222,9.988e-05,2]
[356288457,1742191837991,-443.31,9.99e-05,2]
[356288458,1742191838000,-1090.2221324,9.997e-05,2]
[356288459,1742191838010,-2457.5945708,9.997e-05,2]
[356288460,1742191838019,-265.35,9.997e-05,2]
[356288461,1742191838029,-551.0,0.0001,2]
[356288462,1742191838038,-56083.66459777,0.0001,2]
[356288463,1742191838050,-1177.89409944,0.0001,2]
[356288464,1742191838061,-62827.34497447,0.0001,2]
[356288465,1742191838072,-335.7069735,0.0001,2]
[356288477,1742191839927,150.0,0.00010305,7]
[356288478,1742191840028,-799.0,0.0001,2]
[356288479,1742191840126,-883.51789075,0.0001,2]
[356288480,1742191840383,-2377.45942599,0.0001,2]
[356288489,1742191842901,-7918.45950227,0.0001,2]
[356288490,1742191844422,-1785.41154602,0.0001,2]
[356288491,1742191844434,-673.82,0.0001,2]
[356288494,1742191994994,863.21,8.32e-05,2]
[356288495,1742192087060,1406.69,9.138e-05,2]
[356288496,1742192115481,-221.1044482,9.798e-05,2]
[356288497,1742192139958,2000.0,9.02e-05,2]
[356288498,1742192237578,166.16,8.973e-05,2]
[356288499,1742192370237,1171.05,8.963e-05,2]
[356288500,1742192404359,-73.09583761,9.798e-05,2]
[356288501,1742192404388,-226.90416239,9.806e-05,2]
[356288502,1742192413652,250.0,8.964e-05,2]
[356288503,1742192447405,-273.09583761,9.806e-05,2]
[356288504,1742192447435,-150.0,9.813e-05,2]
[356288505,1742192447463,-1000.0,9.815e-05,2]
[356288506,1742192447495,-150.0,9.831e-05,2]
[356288507,1742192447522,-1000.0,9.837e-05,2]
[356288508,1742192447548,-1000.0,9.854e-05,2]
[356288509,1742192447580,-939.46206958,9.89e-05,2]
[356288510,1742192447608,-150.0,9.899e-05,2]
[356288511,1742192447636,-7728.332599,9.9e-05,2]
[356288512,1742192447663,-5000.0,9.9e-05,2]
[356288513,1742192447689,-267.6576,9.9e-05,2]
[356288514,1742192447716,-52909.4652,9.9e-05,2]
[356288515,1742192447744,-1000.0,9.9e-05,2]
[356288516,1742192447771,-1974.087,9.9e-05,2]
[356288517,1742192447801,-294.1056,9.9e-05,2]
[356288518,1742192447827,-221.1045,9.9e-05,2]
[356288519,1742192447858,-1000.0,9.9e-05,2]
[356288520,1742192447885,-282.6228,9.9e-05,2]
[356288521,1742192447912,-2500.0,9.9e-05,2]
[356288522,1742192447942,-150.0,9.916e-05,2]
[356288523,1742192447969,-4493.64,9.916e-05,2]
[356288524,1742192447996,-718.05,9.916e-05,2]
[356288525,1742192448025,-150.0,9.917e-05,2]
[356288526,1742192448054,-1000.0,9.919e-05,2]
[356288527,1742192448086,-150.0,9.919e-05,2]
[356288528,1742192448116,-150.0,9.925e-05,2]
[356288529,1742192448147,-436.81609014,9.928e-05,2]
[356288530,1742192448174,-150.0,9.928e-05,2]
[356288531,1742192448449,-150.0,9.933e-05,2]
[356288532,1742192448534,-150.0,9.933e-05,2]
[356288533,1742192448561,-150.0,9.936e-05,2]
[356288534,1742192448587,-150.0,9.943e-05,2]
[356288535,1742192448610,-457.4677,9.945e-05,2]
[356288536,1742192448636,-150.0,9.949e-05,2]
[356288537,1742192448662,-150.0,9.956e-05,2]
[356288538,1742192448686,-150.0,9.958e-05,2]
[356288539,1742192448711,-1000.0,9.959e-05,2]
[356288540,1742192448739,-150.0,9.959e-05,2]
[356288541,1742192448767,-150.0,9.959e-05,2]
[356288542,1742192448793,-150.0,9.961e-05,2]
[356288543,1742192448819,-150.0,9.962e-05,2]
[356288544,1742192448844,-150.0,9.964e-05,2]
[356288545,1742192448871,-150.0,9.97e-05,2]
[356288546,1742192448896,-150.0,9.97e-05,2]
[356288547,1742192448922,-150.0,9.971e-05,2]
[356288548,1742192448946,-152.42195557,9.973e-05,2]
[356288549,1742192448969,-150.75618284,9.973e-05,2]
[356288550,1742192448995,-356.60709018,9.973e-05,2]
[356288551,1742192449020,-170.29429001,9.973e-05,2]
[356288552,1742192449045,-1898.136,9.973e-05,2]
[356288553,1742192449072,-150.0,9.976e-05,2]
[356288554,1742192449103,-150.0,9.978e-05,2]
[356288555,1742192449131,-1000.0,9.982e-05,2]
[356288556,1742192449159,-150.0,9.983e-05,2]
[356288557,1742192449184,-1000.0,9.984e-05,2]
[356288558,1742192449212,-150.0,9.989e-05,2]
[356288559,1742192449239,-150.0,9.991e-05,2]
[356288560,1742192449264,-1000.0,9.993e-05,2]
[356288561,1742192449291,-150.0,9.993e-05,2]
[356288562,1742192449315,-2718.3121109,9.995e-05,2]
[356288563,1742192449338,-7517.5863475,9.995e-05,2]
[356288564,1742192449361,-500.0,0.0001,2]
[356288565,1742192449388,-1052093.07882796,0.0001,2]
[356288566,1742192449416,-36318.94506777,0.0001,2]
[356288568,1742192449441,-500.0,0.0001,2]
[356288569,1742192449464,-150.0,0.0001,2]
[356288570,1742192449491,-150.0,0.0001,2]
[356288571,1742192449513,-562.47955917,0.0001,2]
[356288572,1742192449535,-150.0,0.0001,2]
[356288573,1742192449558,-150.0,0.0001,2]
[356288574,1742192449581,-4046.5654733,0.0001,2]
[356288575,1742192449604,-16683.38456823,0.0001,2]
[356288576,1742192449626,-1978.17037326,0.0001,2]
[356288577,1742192449649,-576.5145066,0.0001,2]
[356288578,1742192449674,-150.0,0.0001,2]
[356288579,1742192449697,-224.2534351,0.0001,2]
[356288580,1742192449719,-150.0,0.0001,2]
[356288581,1742192449742,-539.15266564,0.0001,2]
[356288582,1742192449764,-3297.98978968,0.0001,2]
[356288583,1742192449788,-150.0,0.0001,2]
[356288584,1742192449823,150.0,9.944e-05,2]
[356288585,1742192455984,209.74,9.57e-05,2]
[356288587,1742192500382,-1000.0,9.9e-05,2]
[356288588,1742192500410,-3757.3559326,9.995e-05,2]
[356288589,1742192500433,-1021.0745696,0.00010002,2]
[356288590,1742192500457,-300.0,0.00010008,2]
[356288591,1742192500481,-2749.4901932,0.00010009,2]
[356288592,1742192500504,-6243.7793266,0.00010009,2]
[356288593,1742192500527,-150.0,0.0001001,2]
[356288594,1742192500549,-150.0,0.00010014,2]
[356288595,1742192500575,-150.0,0.00010016,2]
[356288596,1742192500599,-150.0,0.00010019,2]
[356288597,1742192500626,-1000.0,0.00010019,2]
[356288598,1742192500652,-150.0,0.00010026,2]
[356288599,1742192500674,-150.0,0.0001003,2]
[356288600,1742192500699,-150.0,0.00010033,2]
[356288601,1742192500724,-150.0,0.00010036,2]
[356288602,1742192500746,-200.0,0.00010043,2]
[356288603,1742192500769,-200.0,0.00010043,2]
[356288604,1742192500795,-150.0,0.0001005,2]
[356288605,1742192500818,-150.0,0.00010051,2]
[356288606,1742192500843,-150.0,0.00010054,2]
[356288607,1742192500866,-150.0,0.00010055,2]
[356288608,1742192500889,-150.0,0.00010056,2]
[356288609,1742192500912,-150.0,0.00010057,2]
[356288610,1742192500934,-1000.0,0.00010058,2]
[356288611,1742192500956,-300.0,0.00010059,2]
[356288612,1742192500980,-150.0,0.00010063,2]
[356288613,1742192501004,-150.0,0.00010066,2]
[356288614,1742192501028,-150.0,0.00010066,2]
[356288615,1742192501053,-150.0,0.00010069,2]
[356288616,1742192501075,-150.0,0.0001007,2]
[356288617,1742192501099,-150.0,0.00010072,2]
[356288618,1742192501122,-150.0,0.00010072,2]
[356288619,1742192501145,-1000.0,0.00010073,2]
[356288620,1742192501169,-150.0,0.00010076,2]
[356288621,1742192501193,-770.32162229,0.00010076,2]
[356288622,1742192501218,-150.0,0.00010079,2]
[356288623,1742192501243,-150.0,0.00010081,2]
[356288624,1742192501267,-1171.05,0.00010084,2]
[356288625,1742192501294,-150.0,0.00010084,2]
[356288626,1742192501319,-150.0,0.00010084,2]
[356288627,1742192501344,-150.0,0.00010086,2]
[356288628,1742192501367,-979.79190162,0.00010086,2]
[356288629,1742192501392,-150.0,0.00010088,2]
[356288630,1742192501419,-150.0,0.00010088,2]
[356288631,1742192501444,-150.0,0.00010092,2]
[356288632,1742192501470,-150.0,0.00010094,2]
[356288633,1742192501496,-150.0,0.00010097,2]
[356288634,1742192501521,-150.0,0.00010099,2]
[356288635,1742192501546,-150.0,0.00010104,2]
[356288636,1742192501569,-150.0,0.00010111,2]
[356288637,1742192501595,-150.0,0.00010111,2]
[356288638,1742192501621,-150.0,0.00010114,2]
[356288639,1742192501649,-150.0,0.00010114,2]
[356288640,1742192501673,-150.0,0.00010116,2]
[356288641,1742192501699,-150.0,0.00010122,2]
[356288642,1742192501723,-150.0,0.00010129,2]
[356288643,1742192501748,-150.0,0.00010131,2]
[356288644,1742192501773,-259.66482779,0.00010136,2]
[356288645,1742192501797,-150.0,0.00010137,2]
[356288646,1742192501987,-1000.0,0.00010137,2]
[356288647,1742192502013,-270.79632339,0.00010139,2]
[356288648,1742192502040,-150.0,0.00010139,2]
[356288649,1742192502066,-150.0,0.0001014,2]
[356288650,1742192502090,-200.0,0.00010143,2]
[356288651,1742192502113,-200.0,0.00010143,2]
[356288652,1742192502139,-150.0,0.00010143,2]
[356288653,1742192502164,-150.0,0.00010144,2]
[356288654,1742192502190,-150.0,0.00010144,2]
[356288655,1742192502215,-150.0,0.00010147,2]
[356288656,1742192502240,-150.0,0.00010148,2]
[356288657,1742192502264,-150.0,0.00010153,2]
[356288658,1742192502291,-150.0,0.00010154,2]
[356288659,1742192502315,-150.0,0.00010154,2]
[356288660,1742192502340,-150.0,0.00010155,2]
[356288661,1742192502365,-150.0,0.00010156,2]
[356288662,1742192502389,-150.0,0.00010168,2]
[356288663,1742192502417,-150.0,0.00010172,2]
[356288664,1742192502441,-150.0,0.00010175,2]
[356288665,1742192502466,-150.0,0.00010175,2]
[356288666,1742192502491,-150.0,0.00010178,2]
[356288667,1742192502517,-150.0,0.00010183,2]
[356288668,1742192502543,-150.0,0.00010183,2]
[356288669,1742192502567,-150.0,0.00010185,2]
[356288670,1742192502591,-150.0,0.0001019,2]
[356288671,1742192502614,-150.51250464,0.00010192,2]
[356288672,1742192502638,-150.0,0.00010194,2]
[356288673,1742192502662,-150.0,0.00010194,2]
[356288674,1742192502687,-150.0,0.00010198,2]
[356288675,1742192502711,-150.0,0.00010206,2]
[356288676,1742192502735,-8681.92022694,0.00010207,2]
[356288677,1742192502757,-150.0,0.00010209,2]
[356288678,1742192502780,-10519.64639858,0.0001021,2]
[356288679,1742192502804,-1000.0,0.00010222,2]
[356288680,1742192502828,-150.0,0.00010232,2]
[356288681,1742192502852,-150.0,0.00010234,2]
[356288682,1742192502875,-1000.0,0.00010235,2]
[356288683,1742192502896,-200.0,0.00010245,2]
[356288684,1742192502920,-200.0,0.00010245,2]
[356288685,1742192502942,-1000.0,0.00010254,2]
[356288686,1742192502964,-150.0,0.00010261,2]
[356288687,1742192502987,-150.0,0.00010263,2]
[356288688,1742192503013,-748.94,0.00010266,2]
[356288689,1742192503036,-1000.0,0.00010275,2]
[356288690,1742192503059,-150.0,0.00010277,2]
[356288691,1742192503082,-1000.0,0.00010285,2]
[356288692,1742192503104,-425.35019985,0.00010287,2]
[356288693,1742192503126,-2000.0,0.00010305,2]
[356288694,1742192503148,-200.0,0.00010305,2]
[356288695,1742192503170,-167.20471877,0.00010305,2]
[356288696,1742192503192,-247.41165305,0.00010305,2]
[356288697,1742192503215,-200.0,0.00010305,2]
[356288698,1742192503237,-200.0,0.00010347,2]
[356288699,1742192503259,-200.0,0.00010347,2]
[356288700,1742192503282,-23900.0,0.00010401,2]
[356288701,1742192503304,-1083.20694886,0.00010408,2]
[356288702,1742192503326,-200.0,0.00010408,2]
[356288703,1742192503350,-200.0,0.00010408,2]
[356288704,1742192503373,-200.0,0.00010451,2]
[356288705,1742192503395,-200.0,0.00010451,2]
[356288706,1742192503421,-166.16,0.00010469,2]
[356288707,1742192503443,-200.0,0.00010512,2]
[356288708,1742192503467,-200.0,0.00010512,2]
[356288709,1742192503490,-425.35019985,0.00010536,2]
[356288710,1742192503514,-863.21,0.00010584,2]
[356288711,1742192503538,-965.0,0.000106,2]
[356288712,1742192503563,-368.0,0.000106,2]
[356288713,1742192503585,-288.0,0.000106,2]
[356288714,1742192503608,-200.0,0.00010617,2]
[356288715,1742192503630,-200.0,0.00010617,2]
[356288716,1742192503651,-156.0,0.00010674,2]
[356288717,1742192503673,-156.0,0.00010674,2]
[356288718,1742192503694,-156.0,0.00010674,2]
[356288719,1742192503717,-184.00606239,0.00010674,2]
[356288720,1742192503740,-200.0,0.00010723,2]
[356288721,1742192503763,-200.0,0.00010723,2]
[356288722,1742192503784,-150.0,0.00010778,2]
[356288723,1742192503807,-500.0,0.00010778,2]
[356288724,1742192503830,-150.0,0.00010778,2]
[356288725,1742192503852,-150.0,0.00010778,2]
[356288726,1742192503875,-500.0,0.00010778,2]
[356288727,1742192503898,-425.35019985,0.00010842,2]
[356288728,1742192503920,-160.82,0.00010844,2]
[356288729,1742192503942,-637.0,0.00010889,2]
[356288730,1742192503965,-346.64939293,0.000109,2]
[356288731,1742192503988,-200.0,0.00010959,2]
[356288732,1742192504010,-200.0,0.00010959,2]
[356288733,1742192504034,-200.0,0.00010959,2]
[356288734,1742192504057,-150.0,0.00010959,2]
[356288735,1742192504080,-420.0,0.00011009,2]
[356288736,1742192504103,-176.63,0.00011065,2]
[356288737,1742192504127,-255.0,0.00011079,2]
[356288738,1742192504152,-300.0,0.00011098,2]
[356288739,1742192504174,-59945.5285294,0.00011099,2]
[356288740,1742192504197,-59945.52852931,0.00011099,2]
[356288741,1742192504220,-28644.74808302,0.00011099,2]
[356288742,1742192504243,-28644.748083,0.00011099,2]
[356288743,1742192504266,-151.0,0.00011099,2]
[356288744,1742192504290,-151.0,0.00011099,2]
[356288745,1742192504312,-151.0,0.00011099,2]
[356288746,1742192504334,-151.0,0.00011099,2]
[356288747,1742192504357,-151.0,0.00011099,2]
[356288748,1742192504379,-151.0,0.00011099,2]
[356288749,1742192504400,-151.0,0.00011099,2]
[356288750,1742192504428,-1132.176697,0.00011099,2]
[356288751,1742192504452,-1132.176697,0.00011099,2]
[356288752,1742192504475,-193.321918,0.00011099,2]
[356288753,1742192504498,-151.0,0.00011099,2]
[356288754,1742192504522,-193.321918,0.00011099,2]
[356288755,1742192504545,-151.0,0.00011099,2]
[356288756,1742192504572,-175.813155,0.00011099,2]
[356288757,1742192504597,-241.041573,0.00011099,2]
[356288758,1742192504619,-241.041573,0.00011099,2]
[356288759,1742192504641,-151.0,0.00011099,2]
[356288760,1742192504663,-151.0,0.00011099,2]
[356288761,1742192504685,-500.0,0.00011151,2]
[356288762,1742192504707,-500.0,0.00011151,2]
[356288763,1742192504728,-500.0,0.00011151,2]
[356288764,1742192504750,-150.0,0.00011151,2]
[356288765,1742192504774,-500.0,0.00011151,2]
[356288766,1742192504796,-150.0,0.00011151,2]
[356288767,1742192504819,-500.0,0.00011151,2]
[356288768,1742192504842,-500.0,0.00011178,2]
[356288769,1742192504865,-500.0,0.00011178,2]
[356288770,1742192504887,-500.0,0.00011178,2]
[356288771,1742192504910,-500.0,0.00011178,2]
[356288772,1742192504933,-500.0,0.00011178,2]
[356288773,1742192504956,-425.35019985,0.00011182,2]
[356288774,1742192504981,-1171.05,0.00011204,2]
[356288775,1742192505003,-500.0,0.00011206,2]
[356288776,1742192505027,-500.0,0.00011206,2]
[356288777,1742192505050,-500.0,0.00011206,2]
[356288778,1742192505073,-500.0,0.00011206,2]
[356288779,1742192505095,-500.0,0.00011206,2]
[356288780,1742192505118,-500.0,0.00011233,2]
[356288781,1742192505141,-500.0,0.00011233,2]
[356288782,1742192505163,-928.02644158,0.00011233,2]
[356288783,1742192505185,-500.0,0.00011233,2]
[356288784,1742192505208,-789.17531657,0.00011233,2]
[356288785,1742192505230,-734.83682523,0.00011261,2]
[356288786,1742192505252,-500.0,0.00011261,2]
[356288787,1742192505275,-500.0,0.00011261,2]
[356288788,1742192505297,-500.0,0.00011288,2]
[356288789,1742192505321,-500.0,0.00011288,2]
[356288790,1742192505343,-500.0,0.00011315,2]
[356288791,1742192505367,-898.30176699,0.00011315,2]
[356288792,1742192505393,-500.0,0.00011343,2]
[356288793,1742192505425,-500.0,0.0001137,2]
[356288794,1742192505447,-500.0,0.00011398,2]
[356288795,1742192505472,-748.94,0.00011407,2]
[356288796,1742192505495,-500.0,0.00011425,2]
[356288797,1742192505518,-1000.0,0.00011428,2]
[356288798,1742192505541,-425.35019985,0.00011447,2]
[356288799,1742192505563,-947.12199615,0.00011452,2]
[356288800,1742192505586,-2751.0,0.00011507,2]
[356288801,1742192505609,-1506.36992475,0.0001157,2]
[356288802,1742192505631,-1000.0,0.0001167,2]
[356288803,1742192505653,-1000.0,0.0001167,2]
[356288804,1742192505676,-904.48656318,0.0001167,2]
[356288805,1742192505701,-150.0,0.00011698,2]
[356288806,1742192505725,-150.0,0.00011817,2]
[356288807,1742192505748,-160.82,0.00011829,2]
[356288808,1742192505770,-59945.52852931,0.000119,2]
[356288809,1742192505794,-151.0,0.000119,2]
[356288810,1742192505817,-28644.748083,0.000119,2]
[356288811,1742192505839,-151.0,0.000119,2]
[356288812,1742192505861,-151.0,0.000119,2]
[356288813,1742192505883,-154.911866,0.000119,2]
[356288814,1742192505909,-151.0,0.000119,2]
[356288815,1742192505933,-151.0,0.000119,2]
[356288816,1742192505956,-155.939989,0.000119,2]
[356288817,1742192505979,-151.0,0.000119,2]
[356288818,1742192506002,-151.0,0.000119,2]
[356288819,1742192506027,-1132.176697,0.000119,2]
[356288820,1742192506052,-1132.176697,0.000119,2]
[356288821,1742192506075,-193.321918,0.000119,2]
[356288822,1742192506254,-151.0,0.000119,2]
[356288823,1742192506277,-193.321918,0.000119,2]
[356288824,1742192506301,-151.0,0.000119,2]
[356288825,1742192506326,-241.041573,0.000119,2]
[356288826,1742192506348,-241.041573,0.000119,2]
[356288827,1742192506371,-154.868768,0.000119,2]
[356288828,1742192506393,-153.939722,0.000119,2]
[356288829,1742192506419,-166.16,0.00011964,2]
[356288830,1742192506442,-1000.0,0.0001197,2]
[356288831,1742192506465,-1000.0,0.0001197,2]
[356288832,1742192506490,-500.0,0.0001197,2]
[356288833,1742192506514,-1000.0,0.0001197,2]
[356288834,1742192506536,-500.0,0.0001197,2]
[356288835,1742192506559,-500.0,0.0001197,2]
[356288836,1742192506583,-5000.0,0.00012,2]
[356288837,1742192506605,-151.0,0.00012,2]
[356288838,1742192506627,-151.0,0.00012,2]
[356288839,1742192506656,-151.0,0.00012,2]
[356288840,1742192506679,-151.0,0.00012,2]
[356288841,1742192506702,-151.0,0.00012,2]
[356288842,1742192506726,-193.84,0.00012,2]
[356288843,1742192506751,-151.0,0.00012,2]
[356288844,1742192506773,-151.0,0.00012,2]
[356288845,1742192506796,-1014.6094,0.00012,2]
[356288846,1742192506819,-587.0,0.00012109,2]
[356288847,1742192506841,-433.0,0.00012187,2]
[356288848,1742192506865,-1171.05,0.00012325,2]
[356288849,1742192506894,-748.94,0.00012548,2]
[356288850,1742192506918,-1000.0,0.0001257,2]
[356288851,1742192506940,-160.82,0.00012815,2]
[356288852,1742192506963,-673.75,0.00012846,2]
[356288853,1742192506986,-863.21,0.00012848,2]
[356288854,1742192507009,-59945.52852931,0.000129,2]
[356288855,1742192507033,-28644.748083,0.000129,2]
[356288856,1742192507056,-157.818794,0.000129,2]
[356288857,1742192507079,-151.0,0.000129,2]
[356288858,1742192507103,-151.0,0.000129,2]
[356288859,1742192507127,-151.0,0.000129,2]
[356288860,1742192507149,-151.0,0.000129,2]
[356288861,1742192507174,-1132.176697,0.000129,2]
[356288862,1742192507198,-1132.176697,0.000129,2]
[356288863,1742192507221,-193.321918,0.000129,2]
[356288864,1742192507245,-151.0,0.000129,2]
[356288865,1742192507268,-193.321918,0.000129,2]
[356288866,1742192507293,-151.0,0.000129,2]
[356288867,1742192507317,-241.041573,0.000129,2]
[356288868,1742192507340,-241.041573,0.000129,2]
[356288869,1742192507363,-150.06,0.00013,2]
[356288870,1742192507387,-150.06,0.00013,2]
[356288871,1742192507414,-150.06,0.00013,2]
[356288872,1742192507438,-150.06,0.00013,2]
[356288873,1742192507461,-150.06,0.00013,2]
[356288874,1742192507484,-150.06,0.00013,2]
[356288875,1742192507508,-150.06,0.00013,2]
[356288876,1742192507532,-780.0,0.0001332,2]
[356288877,1742192507555,-363.0,0.00013406,2]
[356288878,1742192507580,-1171.05,0.00013445,2]
[356288879,1742192507604,-166.16,0.0001346,2]
[356288880,1742192507627,-748.94,0.00013688,2]
[356288881,1742192507649,-500.0,0.00013699,2]
[356288882,1742192507672,-200.0,0.00013699,2]
[356288883,1742192507695,-245.33274561,0.00013699,2]
[356288884,1742192507719,-500.0,0.00013699,2]
[356288885,1742192507743,-445.33747762,0.00013699,2]
[356288886,1742192507765,-500.0,0.00013699,2]